Cogmind - Beta 17.1 @@@ ROGUE MODE // 2026.09.02 @ 13:27:59 Player: Clog Result: Destroyed by S-10 Pest with Light Assault Rifle Performance ------------- Evolutions (0) 0 Regions Visited (3) 600 Robots Destroyed (25) 125 Value Destroyed (426) 426 Prototype IDs (1) 20 Alien Tech Used (0) 0 Bonus (67) 67 TOTAL SCORE: 1238 Bonus ------- Follower Combat Kills 67 Cogmind --------- Core Integrity 0/250 Matter 252/300 Energy 172/250 System Corruption 1% Temperature Cool (0) Movement Rolling (120) Ox2 Location -10/Subcaves Parts ------- > --- POWER (1) -------- Ion Engine > --- PROPULSION (2) --- Armored Wheel > --- UTILITY (2) ------ Large Storage Unit > --- WEAPON (2) ------- Light EM Pulse Cannon Improved Light Cannon > --- INVENTORY (15) --- Ion Engine Light Nuclear Core Light Treads Light Treads Light Treads Light Treads Improved Heat Sink Experimental Sensor Array Transport Network Coupler Light EM Pulse Cannon Light EM Pulse Cannon Improved Light Cannon Grenade Launcher Peak State ------------ > --- POWER ------------ Ion Engine > --- PROPULSION ------- Armored Wheel Armored Wheel > --- UTILITY ---------- Large Storage Unit Experimental Sensor Array > --- WEAPON ----------- Medium Laser Improved Light Cannon > --- INVENTORY -------- Ion Engine Light Nuclear Core Light Treads Light Treads Light Treads Light Treads Improved Heat Sink Seismic Detector Transport Network Coupler Light EM Pulse Cannon Light EM Pulse Cannon Light EM Pulse Cannon Improved Light Cannon Improved Light Cannon Grenade Launcher [Rating: 20] Favorites ----------- Power Ion Engine Engine Ion Engine Propulsion Light Treads Treads Light Treads Wheel Armored Wheel Utility Seismic Detector Device Seismic Detector Storage Large Storage Unit Weapon Medium Laser Energy Gun Medium Laser Energy Cannon Subdweller Beam Cannon Ballistic Cannon Improved Light Cannon Launcher Grenade Launcher Build | -11 -10 -10 -10 ------- Run | Yrd Mat Min Sub Slots Evolved . | . . . . Power . | . . . . Propulsion . | . . . . Utility . | . . . . Weapon . | . . . . Parts Attached 19 | 7 8 1 3 Power 1 | 1 . . . Engine 1 | 1 . . . Core . | . . . . Reactor . | . . . . Propulsion 4 | 2 2 . . Treads 2 | 2 . . . Leg . | . . . . Wheel 2 | . 2 . . Hover . | . . . . Flight . | . . . . Utility 7 | 2 4 1 . Device 4 | 1 2 1 . Storage 3 | 1 2 . . Processor . | . . . . Hackware . | . . . . Protection . | . . . . Artifact . | . . . . Weapon 7 | 2 2 . 3 Energy Gun 2 | 2 . . . Energy Cannon 2 | . . . 2 Ballistic Gun . | . . . . Ballistic Cannon 2 | . 1 . 1 Launcher 1 | . 1 . . Special Weapon . | . . . . Impact Weapon . | . . . . Slashing Weapon . | . . . . Piercing Weapon . | . . . . Special Melee Weapon . | . . . . Unidentified Prototypes 1 | . . 1 . Parts Lost 6 | . 2 . 4 Power . | . . . . Propulsion 1 | . . . 1 Utility 3 | . 2 . 1 Weapon 2 | . . . 2 Highest Loss Streak 4 | . 1 . 4 To Critical Strikes . | . . . . Average Backups 11 | 1 10 15 14 Power 1 | . 1 2 2 Propulsion 3 | . 3 4 4 Utility 2 | . 2 2 3 Weapon 3 | . 3 6 5 Tool/Special . | . . . . Unused Backups 12 | 1 . 1 10 Power 2 | . . . 2 Propulsion 5 | 1 . 1 3 Utility 2 | . . . 2 Weapon 3 | . . . 3 Tool/Special . | . . . . Average Slot Usage (%) 98 | . 98 100 98 Engine 14 | . 14 14 14 Treads 15 | . 21 . . Wheel 12 | . 6 28 28 Device 13 | . 12 14 12 Storage 14 | . 14 14 14 Energy Gun 19 | . 22 14 6 Ballistic Cannon 7 | . 5 13 14 Peak Build Rating 20 | 7 12 20 14 Average Rating 9 | 5 9 12 13 On Entrance 8 | . 7 12 13 Avg Prop Armor Cover (%) . | . . . . Naked Turns . | . . . . Heaviest Build 38 | 14 32 32 38 Greatest Support 40 | 40 40 24 24 Greatest Overweight (x) 2 | . 2 1 1 Average Overweight (x) . | . . 1 1 Largest Inventory Capacity 15 | 8 15 15 15 Average Capacity 12 | 6 12 15 15 Most Carried 15 | 3 15 15 15 Average Carried 11 | 1 10 14 14 Final Capacity 15 | 8 15 15 15 Final Carried 15 | 2 15 15 13 Class Distribution -------------------- 100% | Mutant Dominant Class ---------------- Mutant | -10/Materials Mutant | -10/Mines Mutant | -10/Subcaves Resources | -11 -10 -10 -10 ----------- Run | Yrd Mat Min Sub Matter Collected 596 | 224 268 72 32 Remotely . | . . . . Salvage Created 524 | 15 405 99 5 Parts 49 | 2 36 11 . Haulers Intercepted 2 | . 2 . . Recyclers Shooed 1 | 1 . . . Parts Field Recycled . | . . . . Retrieved Matter . | . . . . Parts Self-Destructed 4 | . . . 4 Prevented . | . . . . Parts Restored . | . . . . Kills | -11 -10 -10 -10 ------- Run | Yrd Mat Min Sub Combat Hostiles Destroyed 18 | . 12 5 1 Guns 10 | . 9 1 . Cannons 2 | . . 1 1 AOE 6 | . 3 3 . Classes Destroyed 7 | 1 5 . 1 Worker 1 | . 1 . . Tunneler 1 | 1 . . . Hauler 2 | . 2 . . Watcher 3 | . 3 . . Swarmer 12 | . 9 3 . Grunt 5 | . 3 2 . Subdweller 1 | . . . 1 Best Kill Streak 5 | 1 5 3 1 Combat Bots Only 5 | . 5 3 1 Max Kills in Single Turn 3 | 1 2 3 1 Gunslinging . | . . . . Exploded 3 | . 2 3 . Melee . | . . . . Uniques/NPCs Destroyed . | . . . . Combat | -11 -10 -10 -10 -------- Run | Yrd Mat Min Sub Hostile Shots Fired 106 | . 47 9 50 Missed 23 | . 9 1 13 Hits 83 | . 38 8 37 Projectile 83 | . 38 8 37 Critical Strikes 1 | . . . 1 Damage Taken 1259 | . 693 103 463 Core 259 | . 130 20 109 Absorbed by Shields . | . . . . Core Remaining (%) 100 | 100 . . . Volleys Fired 100 | 5 76 5 14 Largest 2 | 2 2 2 2 Hottest 113 | 90 90 83 113 Shots Fired 159 | 10 111 10 28 Gun 93 | 10 77 4 2 Cannon 63 | . 32 5 26 Launcher 3 | . 2 1 . Special . | . . . . Kinetic 51 | . 32 5 14 Thermal 101 | 10 77 4 10 Explosive 3 | . 2 1 . Electromagnetic 4 | . . . 4 Robot Hit Streak 11 | 4 7 11 9 Robot Miss Streak 7 | 1 7 1 2 Penetration Max . | . . . . Secondary Targets . | . . . . Shots Hit Robots 85 | 6 48 7 24 Core Hits 36 | 2 24 7 3 Critical Kills . | . . . . Critical Parts Destroyed . | . . . . Critical Strikes 1 | 1 . . . Burn 1 | 1 . . . Melee Attacks . | . . . . Impact . | . . . . Slashing . | . . . . Piercing . | . . . . Sneak Attacks . | . . . . Combat Hostiles . | . . . . Follow-up Attacks . | . . . . Damage Inflicted 1642 | 72 816 266 488 Guns 691 | 72 544 51 24 Cannons 533 | . 21 48 464 Explosions 342 | . 195 147 . Melee . | . . . . Ramming 76 | . 56 20 . Kinetic 294 | . 21 48 225 Thermal 854 | 72 544 51 187 Explosive 342 | . 195 147 . Electromagnetic 76 | . . . 76 Impact . | . . . . Slashing . | . . . . Piercing . | . . . . Highest Corruption 1 | . 1 1 1 Average Corruption 1 | . 1 1 1 Corruption Purged . | . . . . Corruption Blocked . | . . . . Effects 12 | . 4 8 . Message Errors 2 | . 1 1 . Matter Fused 4 | . . 4 . Heat Flow Errors 1 | . . 1 . Energy Discharges 2 | . 2 . . Data Loss (minor) 1 | . . 1 . Data Loss (major) 1 | . 1 . . Misfires 1 | . . 1 . Overload Shots . | . . . . Overflow Damage 16 | . 16 . . Projectiles 4 | . 4 . . Explosions 12 | . 12 . . Melee . | . . . . Knockbacks 12 | . 2 1 9 Impact 1 | . 1 . . Kinetic 9 | . 1 1 7 Secondary 2 | . . . 2 Self-Inflicted Damage 39 | . 25 14 . Shots 1 | . . 1 . Rammed 10 | . 8 2 . Targets Rammed 10 | . 8 2 . Kicked . | . . . . Crushed . | . . . . Highest Temperature 276 | 150 276 232 3 Average Temperature 97 | 78 105 85 3 Received Heat Transfer 180 | . 96 42 42 Effects 3 | . 3 . . Interference 3 | . 3 . . Siege Activations . | . . . . Martial Activations . | . . . . Shielding Activations . | . . . . Robots Disrupted . | . . . . Combat Hostiles . | . . . . Robots Corrupted . | . . . . Combat Hostiles . | . . . . Parts Fried . | . . . . Impact Corruptions . | . . . . Robots Melted . | . . . . Combat Hostiles . | . . . . Parts Melted 5 | 1 4 . . Heat Transferred 2070 | 248 1378 148 296 Parts Sabotaged . | . . . . Parts Stolen . | . . . . Parts Stripped . | . . . . Power Chain Reactions . | . . . . Alert | -11 -10 -10 -10 ------- Run | Yrd Mat Min Sub Maximum Alert Level . | . . . . Low Security (%) 100 | 100 100 100 . Level 1 . | . . . . Level 2 . | . . . . Level 3 . | . . . . Level 4 . | . . . . Level 5 . | . . . . High Security . | . . . . Max Security . | . . . . Peak Influence 147 | 5 147 93 . Initial 3 | . . 3 . Average 33 | . 37 27 . Influence Increases 566 | 5 390 148 23 Destroy 0b10 Robot/C 360 | . 240 100 20 Destroy 0b10 Robot/NC 35 | 5 30 . . Destroy Leader 80 | . 60 20 . Allied During Kill 11 | . . 8 3 Successful Hack 32 | . 32 . . Disable Machine 15 | . . 15 . Destroy Structure 18 | . 13 5 . Lose Combat Pursuer 15 | . 15 . . Influence Decreases 566 | 5 380 158 23 Entered New Map 7 | . . 7 . Time Decay 526 | 5 370 151 . Lost Part 10 | . 10 . . Lost Ally 23 | . . . 23 Squads Dispatched 1 | . 1 . . Investigation . | . . . . Extermination . | . . . . Reinforcement 1 | . 1 . . Assault . | . . . . Garrison . | . . . . Intercept . | . . . . Searches Triggered . | . . . . Construction Impeded . | . . . . Haulers Reinforced . | . . . . Active Scanning Responses . | . . . . Cargo Convoy Interrupts . | . . . . Stealth | -11 -10 -10 -10 --------- Run | Yrd Mat Min Sub Distress Signals 1 | . 1 . . Communications Jammed . | . . . . Distress Signals . | . . . . Times Spotted 31 | . 19 5 7 Peak Tracking Total 6 | . 3 3 6 Tactical Retreats 1 | . 1 . . Traps | -11 -10 -10 -10 ------- Run | Yrd Mat Min Sub Traps Triggered 2 | . 2 . . Indirectly . | . . . . Trap Hack Attempts . | . . . . Triggered . | . . . . Disarmed . | . . . . Reprogrammed . | . . . . Reused . | . . . . Traps Extracted . | . . . . Installed . | . . . . Triggered . | . . . . Machines | -11 -10 -10 -10 ---------- Run | Yrd Mat Min Sub Machines Disabled 2 | . . 1 1 Max in Single Turn 1 | . . 1 . Machines Repaired . | . . . . Machines Dismantled . | . . . . Machines Sabotaged . | . . . . Overloaded Fab Kills . | . . . . Hacking | -11 -10 -10 -10 --------- Run | Yrd Mat Min Sub Machines Accessed 6 | . 5 1 . Terminals 6 | . 5 1 . Fabricators . | . . . . Repair Stations . | . . . . Recycling Units . | . . . . Scanalyzers . | . . . . Garrison Access . | . . . . Total Hacks 13 | . 9 4 . Successful 5 | . 5 . . Failed 8 | . 4 4 . Catastrophic . | . . . . Database Lockouts . | . . . . Manual 13 | . 9 4 . Terminals 13 | . 9 4 . Fabricators . | . . . . Repair Stations . | . . . . Recycling Units . | . . . . Scanalyzers . | . . . . Garrison Access . | . . . . Terminal Hacks . | . . . . Fabricator Hacks . | . . . . Repair Station Hacks . | . . . . Recycling Unit Hacks . | . . . . Scanalyzer . | . . . . Garrison Access Hacks . | . . . . Unauthorized Hacks 5 | . 5 . . Terminals 5 | . 5 . . Skim 5 | . 5 . . Fabricators . | . . . . Repair Stations . | . . . . Recycling Units . | . . . . Scanalyzers . | . . . . Garrison Access . | . . . . Data Cores Recovered . | . . . . Used . | . . . . Hacking Detections 4 | . 3 1 . Full Trace Events . | . . . . Feedback Events . | . . . . Feedback Blocked . | . . . . Robot Schematics Acquired . | . . . . Robots Built . | . . . . Authchips . | . . . . Time . | . . . . Total Robot Build Rating . | . . . . Part Schematics Acquired . | . . . . Parts Built . | . . . . Authchips . | . . . . Time . | . . . . Total Part Build Rating . | . . . . Part Studies Acquired . | . . . . Parts Repaired . | . . . . Time . | . . . . Parts Recycled . | . . . . Recycled Matter . | . . . . Retrieved Matter . | . . . . Retrieved Components . | . . . . Parts Scanalyzed . | . . . . Part Schematics Acquired . | . . . . Parts Damaged . | . . . . Bothacking | -11 -10 -10 -10 ------------ Run | Yrd Mat Min Sub Used RIF Installer . | . . . . Robots Hacked . | . . . . Non-combat . | . . . . Combat . | . . . . Robot Hacks Applied . | . . . . Relay Couplers Released . | . . . . Fabnet Peak Effective % . | . . . . Robots Rewired . | . . . . Allies Hacked . | . . . . Hacks Repelled . | . . . . Allies | -11 -10 -10 -10 -------- Run | Yrd Mat Min Sub Total Allies 3 | . . 3 . Largest Group 3 | . . 3 3 Highest-Rated Group 40 | . . 40 40 Highest-Rated Ally 16 | . . 16 16 Total Orders . | . . . . Ally Attacks 16 | . . . 16 Total Damage 150 | . . . 150 Kills 3 | . . . 3 Allies Corrupted . | . . . . Allies Melted . | . . . . Intel | -11 -10 -10 -10 ------- Run | Yrd Mat Min Sub Active Infowar (turns) 2006 | 47 1375 470 114 Sensors 1 | . . 1 . Seismic 2005 | 47 1375 469 114 Robot Analysis Total . | . . . . Derelict Logs Recovered 3 | . . 3 . Drone Launches . | . . . . Drone Recoveries . | . . . . Exploration | -11 -10 -10 -10 ------------- Run | Yrd Mat Min Sub Turns Passed 2496 | 130 1755 470 141 Spaces Moved 1455 | 63 1056 246 90 Core 2 | 2 . . . Treads 741 | 61 680 . . Legs . | . . . . Wheels 712 | . 376 246 90 Hover . | . . . . Flight . | . . . . Fastest Speed 50 | 50 105 105 105 Average Speed 132 | 156 140 105 105 Slowest Speed 160 | 160 160 105 105 Overloaded Moves . | . . . . Propulsion Burnouts . | . . . . Robots Hopped . | . . . . Potential Cave-ins . | . . . . Cave-ins Triggered 1 | . 1 . . Exploration Rate (%) 39 | 4 94 55 5 Regions Visited 3 Branch Regions 2 Pre-discovered Areas 2 | . 1 1 . Known Exits Taken 1 | . . 1 . Unknown Exits Taken 2 | 1 1 . . Scrap Searched 1 | . . 1 . Spaces Dug 1 | . 1 . . Terrain Destroyed 16 | . 10 5 1 Melee . | . . . . Projectile 2 | . 1 . 1 AOE 14 | . 9 5 . Terrain Rammed . | . . . . Walls Destroyed . | . . . . Machines Disabled . | . . . . Actions | -11 -10 -10 -10 --------- Run | Yrd Mat Min Sub Total 1854 | 85 1212 447 110 Wait 234 | . 43 189 2 Move 1452 | 62 1055 245 90 Hop . | . . . . Pick Up 27 | 10 16 1 . Fast Attach 4 | . 3 . 1 Attach 10 | 7 1 . 2 Detach 1 | . 1 . . Swap 9 | . 5 4 . Drop 7 | 1 4 1 1 Fire 100 | 5 76 5 14 Melee . | . . . . Ram 5 | . 3 2 . Kick . | . . . . Crush 5 | . 5 . . Escape Stasis . | . . . . Rewire . | . . . . Trap . | . . . . Miscellaneous . | . . . . Route ------- -11/Scrapyard -10/Materials (discovered 4 exits: *Mat x3 / *Min) -10/Mines (discovered 3 exits: *Mat x2 / *Sub) -10/Subcaves History --------- Turn | Location | Event 8 | -11/Scrapyard | Discovered new exit (range 15) 131 | -11/Scrapyard | Entered Materials 303 | -10/Materials | Build established: Mutant 343 | -10/Materials | Discovered new exit (range 15) 683 | -10/Materials | Discovered new exit (range 6) 699 | -10/Materials | Learned location of 2 exits from Mines 807 | -10/Materials | Learned 2 Mines zone layouts 847 | -10/Materials | Learned location of Subcaves (-10) 876 | -10/Materials | Learned 2 Mines zone layouts 896 | -10/Materials | Identified exit to Materials 928 | -10/Materials | Loaded intel: 2 recycling unit locations 972 | -10/Materials | Learned location of 1 exit from Recycling 1028 | -10/Materials | Learned location of 1 exit from Recycling 1218 | -10/Materials | Crushed by falling debris 1418 | -10/Materials | Discovered exit to Materials (range 15) 1491 | -10/Materials | Core integrity fell below 50% 1886 | -10/Materials | Entered Mines 1887 | -10/Mines | Identified exit to Subcaves 1916 | -10/Mines | Assisted by bots powering up and referring to "LRC-V3" 1929 | -10/Mines | Found a damaged Exp. Sensor Array with a note attached 1932 | -10/Mines | Found Prototype Device 1933 | -10/Mines | Identified Exp. Sensor Array 1948 | -10/Mines | Learned Materials terminal intel 2311 | -10/Mines | Learned location of Zion (-6) 2325 | -10/Mines | Learned Materials security intel 2356 | -10/Mines | Entered Subcaves 2356 | -10/Subcaves | Accompanied by 3 allies 2474 | -10/Subcaves | Core integrity fell below 20% 2497 | -10/Subcaves | Destroyed by S-10 Pest with Light Assault Rifle Last Messages --------------- 02413_ Acquired Sub. Beam Cannon. 02416_ Acquired 10 matter. 02464_ G1-HW3(R) knocked back. 02467_ S-10 Pest destroyed. 02467_ Trooper 1b destroyed. 02469_ Trooper 1a destroyed. 02469_ Mercenary 1a destroyed. 02470_ Seismic Detector destroyed. 02470_ T1-1V0(R) knocked back. 02475_ Lgt. Ion Engine fries itself beyond repair. 02477_ Imp. Light Cannon destroyed. 02480_ T1-1V0(R) knocked back. 02481_ Flight Unit fries itself beyond repair. 02483_ T1-1V0(R) knocked back. 02485_ Flight Unit fries itself beyond repair. 02485_ Sub. Beam Cannon destroyed. 02493_ G1-HW3(R) knocked back. 02493_ T1-1V0(R) destroyed. 02496_ Arm. Wheel destroyed. Map ----- +----------------------------------------------------+ | ?????????????????????????????????????????????????? | | ?????????????????????????????????????????????????? | | ?????????????????????????????????????????????????? | | ?????????????????????????????????????????????????? | | ?????????????????????????????????????????????????? | | ?????????????????????????????????????????????????? | | ?????????????????????????????????????????????????? | | ?????????????????????????????????????????????????? | | ?????????????????????????????????????????????????? | | ?????????????????????????????????????????????????? | | ?????????????????????????????????????????????????? | | ?????????????????????????????????????????????????? | | ?????????????????????????????????????????????????? | | ?????????????????????????????????????????????????? | | ???????????????????????? "???????????????????????? | | ????????????????????????""???????????????????????? | | ???????????????????????? "#??????????????????????? | | ????????????????????????"%#??????????????????????? | | ????????????????????????" #??????????????????????? | | ????????????????????????" #?????#????????????????? | | ????????????????????????"%##??? ###??????????????? | | ???????????????????????##R%??? #??????????????? | | ??????????????????????##; ### #??????????????? | | ??????????????????????# #???????????????? | | ???????????######??????# #????????????????? | | ?###???##### " #?????## @ #???????????????????? | | ## #???# # "####### ss ##???????????????????? | | ##?## """" [% #????????????????????? | | ### ## " " !!== #????????????????????? | | ## #### # # #%=%%##????????????????????? | | #??# "######## ?????????????????? | | #??# ##??????# # ??????????????? | | # # ##?# ##??????# ???????????????? | | ## ## ####= %#??????# ## ??????????????? | | ## % &&% ##??????? #? % "?????????????? | | # !%& ##??????? #?? ""??????????????? | | # % #??????? ##???##???????????????? | | #% #### ###??????? ##?????????????????????? | | #####??###????????? ???????????????????????? | | ##?????????????????? ???????????????????????? | | ##??????????????????? ???????????????????????? | | ##????????????????????????????????????????????? | | # #?????????????????????????????????????????????? | | ####?????????????????????????????????????????????? | | #????????????????????????????????????????????????? | | #????????????????????????????????????????????????? | | #????????????????????????????????????????????????? | | ?????????????????????????????????????????????????? | | ?????????????????????????????????????????????????? | | ?????????????????????????????????????????????????? | +----------------------------------------------------+ Best States ------------- Heat Dissipation 25 Energy Generation 10 Energy Capacity 250 Matter Stores 300 Matter Capacity 300 Sight Range 16 Terrain Scan Density 10 Evasion (%) 40 Recoil Reduction 2 Item Schematics ----------------- None Robot Schematics ------------------ None Fabricated ------------ Nothing Repaired ---------- Nothing Studied --------- None Alien Tech Used ----------------- None Achievements -------------- None Challenges ------------ None Game ------ Seed ControlMiningCycler Manual? 0 Play Time 00:15:59 Cumulative 41.3 hours Start 2026.09.02 @ 13:13:23 End 2026.09.02 @ 13:27:59 Sessions 1 Manual Loads 0 Difficulty Rogue Special Mode None Game No. 47 Rogue 44 Adventurer 3 Explorer 0 Win Type - Total 1 Types 1/0/0/0/0/0/0/0/0/0 Lore% 37 Gallery% 34 Achievement% 33 Wizard Run 0 Options --------- Layout 1 ASCII 0 Keyboard 0 Movement Mouse Keybinds 0 Fullscreen 1 Font 32/SmallcapsGlow Map View 50x35 Zoom Use 0% Tactical HUD 1 Map Filters NONE Filters NONE Steam 1 RUN: 3692bccc-167c-4316-867d-3b64497186f5